bitfinex/quotes_BTCUSD_20241206
["timestamp","ask_amount","ask_price","bid_price","bid_amount"]
[1733528804713,0.15,99925.0,99900.0,0.00235328]
[1733528805190,0.15,99925.0,99900.0,0.00335328]
[1733528806342,0.153,99925.0,99900.0,0.00235328]
[1733528806561,0.159,99925.0,99906.0,0.001]
[1733528807000,0.153,99925.0,99900.0,0.00235328]
[1733528807237,0.159,99925.0,99900.0,0.00335328]
[1733528807471,0.159,99925.0,99900.0,0.00235328]
[1733528807707,0.159,99925.0,99906.0,0.001]
[1733528807925,0.165,99925.0,99906.0,0.001]
[1733528808193,0.15,99925.0,99900.0,0.00235328]
[1733528808409,0.153,99925.0,99900.0,0.00235328]
[1733528809114,0.15,99925.0,99900.0,0.00235328]
[1733528809382,0.156,99925.0,99900.0,0.00335328]
[1733528809625,0.03079743,99924.0,99900.0,0.00335328]
[1733528810102,0.159,99925.0,99900.0,0.00335328]
[1733528810342,0.15,99923.0,99900.0,0.00335328]
[1733528810592,0.15,99921.0,99900.0,0.00235328]
[1733528810848,0.13083837,99922.0,99900.0,0.00235328]
[1733528810849,0.0462,99914.0,99900.0,0.00235328]
[1733528811080,0.15,99912.0,99900.0,0.00335328]
[1733528811315,0.0462,99914.0,99900.0,0.00235328]
[1733528811316,0.15,99910.0,99900.0,0.00235328]
[1733528811566,0.03080886,99909.0,99900.0,0.00235328]
[1733528811801,0.03602578,99909.0,99900.0,0.00235328]
[1733528812063,0.10002951,99908.0,99900.0,0.00235328]
[1733528812309,0.0462,99905.0,99900.0,0.00235328]
[1733528812549,0.18081613,99907.0,99900.0,0.00235328]
[1733528812550,0.1962,99903.0,99900.0,0.00235328]
[1733528812798,0.13084564,99904.0,99890.0,0.0017378]
[1733528812799,0.1962,99891.0,99890.0,0.0017378]
[1733528813047,0.41566246,99891.0,99890.0,0.00235339]
[1733528813524,0.32704564,99891.0,99890.0,0.00235339]
[1733528814200,0.33604564,99891.0,99890.0,0.00235339]
[1733528814696,0.45997087,99891.0,99890.0,0.00235339]
[1733528815381,0.32704564,99891.0,99890.0,0.00235339]
[1733528815833,0.34204564,99891.0,99890.0,0.00335339]
[1733528816061,0.33304564,99891.0,99890.0,0.00335339]
[1733528816279,0.39308671,99891.0,99870.0,0.0017366]
[1733528816500,0.0462,99871.0,99870.0,0.00235066]
[1733528816730,0.29622951,99871.0,99870.0,0.00235066]
[1733528817339,0.15,99871.0,99870.0,0.00235066]
[1733528817791,0.01,99872.0,99870.0,0.00235066]
[1733528818481,0.01,99872.0,99870.0,0.00335066]
[1733528818926,0.01,99872.0,99870.0,0.00235066]
[1733528819378,0.012,99872.0,99870.0,0.00235066]
[1733528819605,0.005,99871.0,99870.0,0.00235066]
[1733528820525,0.017,99872.0,99870.0,0.00235066]
[1733528820526,0.012,99872.0,99870.0,0.00235066]
[1733528820778,0.017,99872.0,99870.0,0.00235066]
[1733528821017,0.012,99872.0,99870.0,0.00235066]
[1733528821250,0.01,99872.0,99870.0,0.00235066]
[1733528821473,0.005,99871.0,99870.0,0.00235066]
[1733528822413,0.005,99871.0,99870.0,0.00335066]
[1733528822636,0.01,99872.0,99870.0,0.00335066]
[1733528822871,0.01,99872.0,99870.0,0.00235066]
[1733528823367,0.01,99872.0,99870.0,0.00335066]
[1733528824018,0.011,99872.0,99870.0,0.00335066]
[1733528824461,0.01,99872.0,99870.0,0.00335066]
[1733528824740,0.29622951,99871.0,99870.0,0.00335066]
[1733528824991,0.29622951,99871.0,99870.0,0.00235066]
[1733528825437,0.29622951,99871.0,99870.0,0.00335066]
[1733528825895,0.0462,99852.0,99850.0,0.0017356]
[1733528826156,0.5471,99870.0,99815.0,0.0149594]
[1733528826157,0.0462,99846.0,99815.0,0.0149594]
[1733528826394,0.15,99844.0,99815.0,0.0149594]
[1733528826612,0.15,99842.0,99830.0,0.00231139]
[1733528828484,0.10002951,99841.0,99830.0,0.00231139]
[1733528828712,0.15,99842.0,99830.0,0.00231139]
[1733528828713,0.01821375,99842.0,99830.0,0.00231139]
[1733528829160,0.02621375,99842.0,99830.0,0.00231139]
[1733528829376,0.02221375,99842.0,99830.0,0.00231139]
[1733528829856,0.004,99841.0,99830.0,0.00231139]
[1733528830117,0.012,99841.0,99830.0,0.00231139]
[1733528830355,0.008,99841.0,99830.0,0.00231139]
[1733528831027,0.01421375,99842.0,99830.0,0.00231139]
[1733528831501,0.004,99842.0,99830.0,0.00231139]
[1733528832171,0.008,99841.0,99830.0,0.00231139]
[1733528833045,0.003,99842.0,99830.0,0.00231139]
[1733528833278,0.006,99841.0,99830.0,0.00231139]
[1733528834206,0.003,99842.0,99830.0,0.00231139]
[1733528834423,0.00521936,99844.0,99830.0,0.00231139]
[1733528834655,0.003,99841.0,99830.0,0.00231139]
[1733528834943,0.003,99841.0,99831.0,0.0038]
[1733528835191,0.0141542,99851.0,99833.0,0.0038]
[1733528835417,0.006,99841.0,99833.0,0.0038]
[1733528835885,0.00521874,99856.0,99833.0,0.0038]
[1733528836098,0.006,99841.0,99839.0,0.0038]
[1733528836313,0.006,99841.0,99840.0,0.15382951]
[1733528836532,0.01402585,99869.0,99846.0,0.0038]
[1733528836775,0.005218,99868.0,99846.0,0.0038]
[1733528837881,0.003,99856.0,99846.0,0.0038]
[1733528838332,0.005218,99868.0,99846.0,0.0038]
[1733528838549,0.008218,99868.0,99846.0,0.0038]
[1733528838772,0.0224395,99868.0,99848.0,0.0038]
[1733528838990,0.015218,99868.0,99848.0,0.0038]
[1733528839201,0.15,99879.0,99849.0,0.0038]
[1733528839409,0.003,99856.0,99849.0,0.0538]
[1733528839861,0.003,99856.0,99849.0,0.15382951]
[1733528840131,0.003,99856.0,99850.0,0.05]
[1733528840470,0.001,99856.0,99850.0,0.05]
[1733528840567,0.001,99856.0,99852.0,0.0538]
[1733528840794,0.001,99856.0,99855.0,0.0038]
[1733528841017,0.001,99856.0,99855.0,0.25362951]
[1733528841236,0.01,99872.0,99869.0,0.0538]
[1733528841446,0.01,99872.0,99869.0,0.15382951]
[1733528842139,0.01,99872.0,99869.0,0.10382951]
[1733528842384,0.01,99872.0,99869.0,0.15382951]
[1733528842804,0.01,99872.0,99869.0,0.15401408]
[1733528843235,0.01,99872.0,99869.0,0.15501408]
[1733528844104,0.01,99872.0,99869.0,0.10501408]
[1733528844319,0.01,99872.0,99869.0,0.15501408]
[1733528844962,0.01,99872.0,99869.0,0.15601408]
[1733528845397,0.01,99872.0,99870.0,0.0038]
[1733528847672,0.01,99872.0,99870.0,0.0048]
[1733528847899,0.01,99872.0,99871.0,0.10382951]
[1733528848165,0.01,99872.0,99871.0,0.15382951]
[1733528848621,0.01,99872.0,99871.0,0.17783075]
[1733528848845,0.01,99872.0,99871.0,0.17682951]
[1733528849319,0.01,99872.0,99871.0,0.17783066]
[1733528849545,0.01,99872.0,99871.0,0.25403066]
[1733528849546,0.011,99872.0,99871.0,0.25403066]
[1733528849776,0.011,99872.0,99871.0,0.25302951]
[1733528850463,0.0008693,99880.0,99879.0,0.0768]
[1733528850699,0.0008693,99880.0,99879.0,0.17682951]
[1733528851888,0.0008693,99880.0,99879.0,0.17783046]
[1733528852349,0.0018693,99880.0,99879.0,0.17783046]
[1733528853919,0.0018693,99880.0,99879.0,0.1838305]
[1733528855290,0.0018693,99880.0,99879.0,0.1608305]
[1733528855539,0.0018693,99880.0,99879.0,0.15982951]
[1733528856650,0.0008693,99880.0,99879.0,0.15982951]
[1733528856889,0.0008693,99880.0,99879.0,0.17682951]
[1733528857167,0.0018693,99880.0,99879.0,0.17682951]
[1733528857846,0.0018693,99880.0,99879.0,0.10882951]
[1733528858066,0.0018693,99880.0,99879.0,0.15882951]
[1733528864677,0.0018693,99880.0,99879.0,0.18182951]
[1733528865148,0.0018693,99880.0,99879.0,0.25932951]
[1733528866046,0.0018693,99880.0,99879.0,0.30932951]
[1733528866295,0.0008693,99880.0,99879.0,0.55852951]
[1733528866518,0.0008689,99890.0,99889.0,0.0768]
[1733528866736,0.0008689,99890.0,99889.0,0.17783033]
[1733528867893,0.0008689,99890.0,99889.0,0.18683033]
[1733528868876,0.0018689,99890.0,99889.0,0.19583033]
[1733528869565,0.0018689,99890.0,99889.0,0.18683033]
[1733528869780,0.0018689,99890.0,99889.0,0.19583033]
[1733528870238,0.0018689,99890.0,99889.0,0.18683033]
[1733528870672,0.0018689,99890.0,99889.0,0.19583033]
[1733528870921,0.0008689,99890.0,99889.0,0.18683033]
[1733528871155,0.0018689,99890.0,99889.0,0.18583033]
[1733528871374,0.0018689,99890.0,99889.0,0.19383033]
[1733528872674,0.0018689,99890.0,99889.0,0.20830207]
[1733528872921,0.0018689,99890.0,99889.0,0.20730125]
[1733528874995,0.0018689,99890.0,99889.0,0.45730125]
[1733528875212,0.0018689,99890.0,99889.0,0.53340125]
[1733528876411,0.0018689,99890.0,99889.0,0.52540125]
[1733528876646,0.0018689,99890.0,99889.0,0.53440125]
[1733528877102,0.0008689,99890.0,99889.0,0.51740125]
[1733528877343,0.0018689,99890.0,99889.0,0.52640125]
[1733528877798,0.0018689,99890.0,99889.0,0.48160125]
[1733528878014,0.0028689,99890.0,99889.0,0.52640125]
[1733528878242,0.0008689,99890.0,99889.0,0.52640125]
[1733528878464,0.0008689,99890.0,99889.0,0.53540125]
[1733528878702,0.0008689,99890.0,99889.0,0.52640125]
[1733528878965,0.0008689,99890.0,99889.0,0.27640125]
[1733528879210,0.0008689,99890.0,99889.0,0.19482951]
[1733528879438,0.0008689,99890.0,99889.0,0.18683034]
[1733528879676,0.0008689,99890.0,99889.0,0.23683034]
[1733528879898,0.0008689,99890.0,99889.0,0.29482951]
[1733528880336,0.0008689,99890.0,99889.0,0.42682951]
[1733528880564,0.0008689,99890.0,99889.0,0.44482951]
[1733528880780,0.0018689,99890.0,99889.0,0.44482951]
[1733528881021,0.0008689,99890.0,99889.0,0.42682951]
[1733528881275,0.0018689,99890.0,99889.0,0.43582951]
[1733528881505,0.0009105,99890.0,99889.0,0.43582951]
[1733528881738,0.0009105,99890.0,99889.0,0.44482951]
[1733528881983,0.0019105,99890.0,99889.0,0.44482951]
[1733528882197,0.001,99890.0,99889.0,0.43582951]
[1733528882652,0.001,99890.0,99889.0,0.37682951]
[1733528882877,0.001,99890.0,99889.0,0.42682951]
[1733528883094,0.001,99890.0,99889.0,0.43582951]
[1733528883557,0.002,99890.0,99889.0,0.44482951]
[1733528883792,0.0452,99934.0,99931.0,0.0038]
[1733528884028,0.0452,99934.0,99932.0,0.10002951]
[1733528885174,0.0452,99934.0,99932.0,0.10021408]
[1733528885445,0.002,99934.0,99933.0,0.0538]
[1733528885656,0.002,99934.0,99933.0,0.15382951]
[1733528886544,0.0008677,99940.0,99936.0,0.05]
[1733528886772,0.0008677,99940.0,99937.0,0.10002951]
[1733528887703,0.0008677,99940.0,99933.0,0.004]
[1733528887935,0.0008677,99940.0,99933.0,0.10782951]
[1733528888378,0.0008677,99940.0,99936.0,0.05]
[1733528888808,0.0008677,99940.0,99938.0,0.0538]
[1733528889082,0.0008677,99940.0,99939.0,0.17682951]
[1733528889316,0.0008677,99940.0,99939.0,0.17302951]
[1733528889533,0.0008677,99940.0,99937.0,0.001]
[1733528889781,0.0008677,99940.0,99934.0,0.05]
[1733528889998,0.28,99939.0,99938.0,0.001]
[1733528890447,0.15,99938.0,99932.0,0.00018457]
[1733528891378,0.15,99938.0,99937.0,0.003]
[1733528891810,0.15,99938.0,99937.0,0.004]
[1733528892272,0.15,99938.0,99932.0,0.00018457]
[1733528893637,0.152,99938.0,99932.0,0.00018457]
[1733528894266,0.152,99938.0,99932.0,0.00118457]
[1733528894267,0.155,99938.0,99932.0,0.00118457]
[1733528894516,0.1226,99935.0,99932.0,0.00018457]
[1733528894727,0.15,99931.0,99896.0,0.05]
[1733528894959,0.15,99929.0,99897.0,0.10002951]
[1733528895171,0.0462,99925.0,99896.0,0.00018505]
[1733528895394,0.200138,99931.0,99896.0,0.00018505]
[1733528895395,0.0462,99921.0,99896.0,0.00018505]
[1733528895634,0.32642951,99920.0,99896.0,0.00018505]
[1733528896324,0.18068459,99919.0,99896.0,0.00018505]
[1733528896532,0.10002951,99918.0,99896.0,0.00018505]
[1733528896744,0.15,99917.0,99896.0,0.00018505]
[1733528896991,0.15,99915.0,99896.0,0.00118505]
[1733528897426,0.15,99915.0,99896.0,0.00018505]
[1733528897663,0.15,99915.0,99896.0,0.00118505]
[1733528897876,0.15,99915.0,99896.0,0.00018505]
[1733528898116,0.155,99915.0,99896.0,0.00118505]
[1733528899414,0.15,99915.0,99896.0,0.00018505]
[1733528899650,0.154,99915.0,99896.0,0.00118505]
[1733528899859,0.162,99915.0,99896.0,0.00118505]
[1733528900067,0.158,99915.0,99896.0,0.00018505]
[1733528900278,0.165,99915.0,99896.0,0.00118505]
[1733528900499,0.161,99915.0,99896.0,0.00018505]
[1733528900970,0.161,99915.0,99896.0,0.00118505]
[1733528900971,0.165,99915.0,99896.0,0.00118505]
[1733528901193,0.162,99915.0,99896.0,0.00118505]
[1733528901407,0.162,99915.0,99896.0,0.00218505]
[1733528901408,0.02,99915.0,99896.0,0.00218505]
[1733528902288,0.02,99915.0,99900.0,0.0538]
[1733528902508,0.01596,99915.0,99900.0,0.05]
[1733528902720,0.01996,99915.0,99900.0,0.05]
[1733528903134,0.004,99915.0,99900.0,0.05]
[1733528903347,0.0772689,99920.0,99900.0,0.05]
[1733528903579,0.004,99915.0,99900.0,0.05]
[1733528904258,0.0772689,99920.0,99896.0,0.00018505]
[1733528904476,0.15,99919.0,99896.0,0.00018505]
[1733528904976,0.008,99915.0,99900.0,0.001]
[1733528905203,0.1962,99911.0,99900.0,0.001]
[1733528905435,0.15,99909.0,99900.0,0.001]
[1733528905660,0.15,99907.0,99900.0,0.001]
[1733528905874,0.15,99905.0,99900.0,0.001]
[1733528906125,0.10002951,99906.0,99880.0,0.0017378]
[1733528906126,0.0462,99892.0,99880.0,0.0017378]
[1733528906334,0.3098587,99904.0,99880.0,0.0017378]
[1733528906335,0.2331,99890.0,99880.0,0.0017378]
[1733528906548,0.2331,99890.0,99880.0,0.00179936]
[1733528906549,0.15,99888.0,99880.0,0.00179936]
[1733528906759,0.10002951,99887.0,99880.0,0.00179936]
[1733528906970,0.15,99886.0,99880.0,0.00179936]
[1733528907177,0.25002951,99886.0,99880.0,0.00179936]
[1733528907635,0.15,99886.0,99880.0,0.00279936]
[1733528907850,0.0921,99890.0,99880.0,0.00179936]
[1733528908058,0.009,99886.0,99880.0,0.00279936]
[1733528908507,0.15,99889.0,99880.0,0.00179936]
[1733528908767,0.009,99886.0,99880.0,0.00279936]
[1733528908990,0.009,99886.0,99880.0,0.00379936]
[1733528909438,0.009,99886.0,99880.0,0.00279936]
[1733528909873,0.005,99889.0,99880.0,0.00179936]
[1733528910344,0.15,99889.0,99880.0,0.00179936]
[1733528910751,0.009,99886.0,99880.0,0.00279936]
[1733528911671,0.09656195,99890.0,99880.0,0.00179936]
[1733528911881,0.15,99888.0,99880.0,0.00279936]
[1733528912107,0.25002951,99888.0,99880.0,0.00279936]
[1733528912341,0.005,99886.0,99880.0,0.00279936]
[1733528912983,0.15,99878.0,99860.0,0.015]
[1733528913191,0.15,99878.0,99870.0,0.00179983]
[1733528913192,0.15,99876.0,99870.0,0.00179983]
[1733528913422,0.17592951,99877.0,99870.0,0.00179983]
[1733528913423,0.15,99874.0,99870.0,0.00179983]
[1733528913635,0.15,99872.0,99870.0,0.00179983]
[1733528913840,0.25002951,99872.0,99870.0,0.00179983]
[1733528914293,0.25002951,99871.0,99870.0,0.00179983]
[1733528914518,0.25002951,99871.0,99870.0,0.00279983]
[1733528914967,0.25002951,99871.0,99870.0,0.00379983]
[1733528915176,0.25002951,99871.0,99870.0,0.00479983]
[1733528915681,0.25002951,99871.0,99870.0,0.00379983]
[1733528916104,0.25602951,99871.0,99870.0,0.00479983]
[1733528916550,0.26124447,99871.0,99870.0,0.00479983]
[1733528916773,0.26124447,99871.0,99870.0,0.00279983]
[1733528916998,0.27024447,99871.0,99870.0,0.00279983]
[1733528917441,0.30744447,99871.0,99870.0,0.00279983]
[1733528917646,0.31644447,99871.0,99870.0,0.00279983]
[1733528917850,0.1962,99869.0,99860.0,0.015]
[1733528918086,0.15,99865.0,99860.0,0.01512913]
[1733528918292,0.15,99863.0,99860.0,0.01512913]
[1733528918493,0.25002951,99863.0,99860.0,0.01512913]
[1733528918696,0.047,99862.0,99860.0,0.01512913]
[1733528918918,0.42240751,99861.0,99860.0,0.01512913]
[1733528919133,0.42240751,99861.0,99830.0,0.001734]
[1733528919134,0.20033,99835.0,99830.0,0.001734]
[1733528919344,0.15,99833.0,99830.0,0.00231139]
[1733528919553,0.0699,99845.0,99830.0,0.00231139]
[1733528919554,0.15,99831.0,99830.0,0.00231139]
[1733528919761,0.25002951,99831.0,99830.0,0.00231139]
[1733528920631,0.25502951,99831.0,99830.0,0.00231139]
[1733528921086,0.01858704,99831.0,99830.0,0.00231139]
[1733528921946,0.02058704,99831.0,99830.0,0.00231139]
[1733528931931,0.007,99831.0,99830.0,0.00231139]
[1733528933874,0.007,99831.0,99829.0,0.0538]
[1733528933875,0.007,99831.0,99829.0,0.05089931]
[1733528934107,0.007,99831.0,99830.0,0.04709931]
[1733528934538,0.005,99831.0,99830.0,0.04709931]
[1733528935001,0.005,99831.0,99829.0,0.0038616]
[1733528935204,0.005,99831.0,99829.0,6.16e-05]
[1733528935439,0.01350868,99842.0,99829.0,0.0038616]
[1733528935666,0.002,99831.0,99830.0,0.002]
[1733528936106,0.002,99831.0,99829.0,0.0038616]
[1733528936333,0.002,99831.0,99829.0,0.0058616]
[1733528936747,0.003,99831.0,99829.0,0.0058616]
[1733528936969,0.003,99831.0,99830.0,0.15092882]
[1733528937193,0.003,99831.0,99830.0,0.10002951]
[1733528937419,0.003,99831.0,99830.0,0.15266682]
[1733528937824,0.003,99831.0,99830.0,0.15466682]
[1733528937999,0.003,99831.0,99830.0,0.10756751]
[1733528938250,0.000869,99840.0,99830.0,0.10756751]
[1733528938251,0.000869,99840.0,99830.0,0.15466682]
[1733528938659,0.000869,99840.0,99832.0,0.04709931]
[1733528939506,0.001869,99840.0,99832.0,0.04709931]
[1733528939728,0.005869,99840.0,99831.0,0.04709931]
[1733528940147,0.005869,99840.0,99833.0,0.0038]
[1733528940357,0.009869,99840.0,99833.0,0.0038]
[1733528940780,0.008869,99840.0,99831.0,0.04709931]
[1733528941028,0.009869,99840.0,99830.0,0.001738]
[1733528941467,0.000869,99840.0,99830.0,0.001738]
[1733528941680,0.004869,99840.0,99830.0,0.001738]
[1733528942109,0.000869,99840.0,99830.0,0.001738]
[1733528942335,0.005869,99840.0,99830.0,0.001738]
[1733528943647,0.004869,99840.0,99830.0,0.001738]
[1733528944066,0.005869,99840.0,99830.0,0.001738]
[1733528944487,0.000869,99840.0,99830.0,0.001738]
[1733528944691,0.007869,99840.0,99830.0,0.001738]
[1733528947776,0.007869,99840.0,99831.0,0.04709931]
[1733528947999,0.007869,99840.0,99838.0,0.04709931]
[1733528949098,0.001869,99840.0,99838.0,0.04709931]
[1733528949303,0.002869,99840.0,99838.0,0.04709931]
[1733528949750,0.001869,99840.0,99838.0,0.04709931]
[1733528949962,0.001869,99840.0,99839.0,0.0038]
[1733528950187,0.002869,99840.0,99839.0,0.0038]
[1733528950394,0.001869,99840.0,99839.0,0.0038]
[1733528950630,0.001869,99840.0,99839.0,0.05089931]
[1733528951288,0.000869,99840.0,99839.0,0.05089931]
[1733528951487,0.001869,99840.0,99839.0,0.05089931]
[1733528951700,0.001869,99840.0,99839.0,0.15192882]
[1733528951924,0.001869,99840.0,99839.0,0.22832882]
[1733528952590,0.001869,99840.0,99822.0,0.05]
[1733528952591,0.1279,99839.0,99806.0,0.08898388]
[1733528952798,0.1279,99839.0,99828.0,6.158e-05]
[1733528953004,0.03067161,99838.0,99828.0,6.158e-05]
[1733528953464,0.03067161,99838.0,99815.0,0.0149594]
[1733528953465,0.13139809,99830.0,99815.0,0.0149594]
[1733528953703,0.47550598,99829.0,99828.0,6.156e-05]
[1733528953925,0.23818612,99829.0,99828.0,6.156e-05]
[1733528954168,0.15,99829.0,99828.0,6.156e-05]
[1733528954636,0.08818612,99835.0,99828.0,6.156e-05]
[1733528954867,0.2779,99829.0,99828.0,6.156e-05]
[1733528955085,0.15,99828.0,99815.0,0.0149594]
[1733528955314,0.37053136,99816.0,99815.0,0.01514418]
[1733528955542,0.4755498,99816.0,99815.0,0.01514418]
[1733528956272,0.65195034,99816.0,99815.0,0.01514418]
[1733528956756,0.4755498,99816.0,99815.0,0.01514418]
[1733528957228,0.4815498,99816.0,99815.0,0.01614418]
[1733528957447,0.156,99816.0,99815.0,0.01614418]
[1733528957698,0.156,99816.0,99815.0,0.01514418]
[1733528957699,0.15,99816.0,99815.0,0.01514418]
[1733528957934,0.159,99816.0,99815.0,0.01514418]
[1733528958148,0.165,99816.0,99815.0,0.01614418]
[1733528958400,0.156,99816.0,99815.0,0.01614418]
[1733528958872,0.015,99816.0,99815.0,0.01614418]
[1733528959105,0.156,99816.0,99815.0,0.01614418]
[1733528959347,0.165,99816.0,99815.0,0.01614418]
[1733528959576,0.15,99816.0,99815.0,0.01514418]
[1733528959806,0.23826185,99816.0,99815.0,0.01514418]
[1733528960271,0.08826185,99816.0,99815.0,0.11517369]
[1733528960506,0.004,99816.0,99815.0,0.11517369]
[1733528960975,0.008,99816.0,99815.0,0.11517369]
[1733528961261,0.002,99816.0,99815.0,0.11517369]
[1733528961492,0.004,99816.0,99815.0,0.11517369]
[1733528961734,0.002,99816.0,99815.0,0.11517369]
[1733528962178,0.004,99816.0,99815.0,0.11517369]
[1733528962408,0.002,99816.0,99815.0,0.11517369]
[1733528962641,0.08826185,99826.0,99815.0,0.11517369]
[1733528962876,0.002,99816.0,99815.0,0.01514418]
[1733528963852,0.08826185,99823.0,99815.0,0.01514418]
[1733528963853,0.08826185,99820.0,99815.0,0.01514418]
[1733528964082,0.08831988,99816.0,99815.0,0.01514418]
[1733528964320,0.08832439,99818.0,99815.0,0.01514418]
[1733528964572,0.15,99817.0,99815.0,0.01514418]
[1733528964796,0.002,99816.0,99815.0,0.01514418]
[1733528965506,0.15,99817.0,99815.0,0.01514418]
[1733528965740,0.08831034,99816.0,99815.0,0.01514418]
[1733528965980,0.28435151,99817.0,99815.0,0.01514418]
[1733528966214,0.152,99817.0,99815.0,0.01514418]
[1733528966448,0.08830933,99816.0,99815.0,0.01514418]
[1733528966667,0.09030933,99817.0,99815.0,0.01514418]
[1733528967136,0.08830933,99816.0,99815.0,0.01514418]
[1733528967348,0.152,99816.0,99815.0,0.01514418]
[1733528967580,0.002,99816.0,99815.0,0.11517369]
[1733528968213,0.15,99823.0,99815.0,0.11517369]
[1733528968423,0.15,99823.0,99816.0,0.10002951]
[1733528968639,0.15,99823.0,99815.0,0.11517369]
[1733528968913,0.08830079,99824.0,99815.0,0.11517369]
[1733528969095,0.001,99816.0,99815.0,0.11517369]
[1733528969544,0.001,99816.0,99815.0,0.11617369]
[1733528970214,0.15024813,99830.0,99815.0,0.11617369]
[1733528970422,0.15024813,99830.0,99816.0,0.10002951]
[1733528970633,0.003,99823.0,99816.0,0.10002951]
[1733528970853,0.15024813,99830.0,99816.0,0.10002951]
[1733528971073,0.00024813,99830.0,99816.0,0.10002951]
[1733528971462,0.00111723,99830.0,99816.0,0.10002951]
[1733528971701,0.00711723,99830.0,99816.0,0.10002951]
[1733528971940,0.00711723,99830.0,99817.0,0.00100173]
[1733528972186,0.00711723,99830.0,99818.0,0.1010312]
[1733528972657,0.00711723,99830.0,99818.0,0.10002951]
[1733528972879,0.00911723,99830.0,99818.0,0.10002951]
[1733528973312,0.00111723,99830.0,99818.0,0.10002951]
[1733528973519,0.00711723,99830.0,99818.0,0.10002951]
[1733528974168,0.01211723,99830.0,99818.0,0.10002951]
[1733528974376,0.01211723,99830.0,99819.0,0.00100169]
[1733528974585,0.01211723,99830.0,99820.0,0.10002951]
[1733528974794,0.01211723,99830.0,99821.0,0.00100169]
[1733528974981,0.00211723,99830.0,99822.0,0.10002951]
[1733528975180,0.00511723,99830.0,99822.0,0.10002951]
[1733528975634,0.00511723,99830.0,99823.0,0.00100169]
[1733528975811,0.00511723,99830.0,99815.0,0.09284418]
[1733528975812,0.00511723,99830.0,99824.0,0.10002951]
[1733528975962,0.00411723,99830.0,99824.0,0.10002951]
[1733528976351,0.00111723,99830.0,99824.0,0.10002951]
[1733528976801,0.00411723,99830.0,99824.0,0.10002951]
[1733528977068,0.00411723,99830.0,99824.0,0.10102951]
[1733528977069,0.00111723,99830.0,99824.0,0.10102951]
[1733528977526,0.00311723,99830.0,99824.0,0.10102951]
[1733528981148,0.00311723,99830.0,99825.0,0.00100158]
[1733528981328,0.00311723,99830.0,99826.0,0.10002951]
[1733528981625,0.00311723,99830.0,99827.0,0.00100157]
[1733528981844,0.00311723,99830.0,99824.0,0.001]
[1733528981845,0.00311723,99830.0,99828.0,0.10103106]
[1733528982915,0.00111723,99830.0,99828.0,0.10103106]
[1733528983132,0.00111723,99830.0,99828.0,0.10303106]
[1733528983572,0.00111723,99830.0,99828.0,0.10103106]
[1733528983784,0.00111723,99830.0,99828.0,0.10403106]
[1733528983999,0.00111723,99830.0,99828.0,0.10703106]
[1733528985570,0.00111723,99830.0,99829.0,0.17302951]
[1733528985801,0.00111723,99830.0,99829.0,0.1740309]
[1733528986032,0.00111723,99830.0,99829.0,0.1240309]
[1733528986254,0.00111723,99830.0,99829.0,0.1010309]
[1733528986466,0.00111723,99830.0,99829.0,0.10002951]
[1733528986957,0.00311723,99830.0,99829.0,0.10902951]
[1733528987161,0.00311723,99830.0,99829.0,0.10602951]
[1733528987407,0.00311723,99830.0,99829.0,0.10902951]
[1733528987408,0.00411723,99830.0,99829.0,0.10902951]
[1733528987632,0.00311723,99830.0,99829.0,0.10602951]
[1733528988318,0.00311723,99830.0,99829.0,0.10902951]
[1733528989262,0.00211723,99830.0,99829.0,0.10302951]
[1733528989705,0.00211723,99830.0,99829.0,0.10702951]
[1733528990163,0.00211723,99830.0,99829.0,0.10302951]
[1733528990413,0.00211723,99830.0,99829.0,0.10502951]
[1733528995003,0.00211723,99830.0,99829.0,0.005]
[1733528995651,0.00111723,99830.0,99820.0,0.0017382]
[1733528996062,0.00311723,99830.0,99820.0,0.0017382]
[1733528996503,0.00311723,99830.0,99829.0,0.001]
[1733528996746,0.01311723,99830.0,99829.0,0.001]
[1733528996982,0.05,99818.0,99781.0,0.15]
[1733528997208,0.05,99818.0,99810.0,0.00018472]
[1733528999146,0.051,99818.0,99810.0,0.00018472]
[1733528999365,0.001,99818.0,99811.0,0.10002951]
[1733528999567,0.001,99818.0,99812.0,0.00100176]
[1733528999781,0.002,99818.0,99813.0,0.10103127]
[1733529000449,0.006,99818.0,99813.0,0.10103127]
[1733529000681,0.005,99818.0,99813.0,0.10103127]
[1733529001102,0.004,99818.0,99813.0,0.10103127]
[1733529001329,0.00111723,99830.0,99813.0,0.10103127]
[1733529001546,0.001,99818.0,99813.0,0.10103127]
[1733529002033,0.00111723,99830.0,99813.0,0.10103127]
[1733529002243,0.00111723,99830.0,99813.0,0.10303127]
[1733529002447,0.00111723,99830.0,99813.0,0.10202951]
[1733529002626,0.00111723,99830.0,99813.0,0.10402951]
[1733529002870,0.00111723,99830.0,99814.0,0.00100172]
[1733529003096,0.00111723,99830.0,99815.0,0.10002951]
[1733529003316,0.00111723,99830.0,99810.0,0.00018472]
[1733529003317,0.0788,99823.0,99814.0,0.10002951]
[1733529003541,0.05,99818.0,99813.0,0.001]
[1733529003758,0.00100178,99817.0,99810.0,0.00018472]
[1733529003976,0.00100178,99817.0,99813.0,0.001]
[1733529004180,0.00100178,99817.0,99810.0,0.00018472]
[1733529005055,0.00300178,99817.0,99810.0,0.00018472]
[1733529005497,0.00300178,99817.0,99810.0,0.00192292]
[1733529006145,0.00800178,99817.0,99810.0,0.00192292]
[1733529006347,0.00300178,99817.0,99810.0,0.00192292]
[1733529006764,0.00800178,99817.0,99810.0,0.00192292]
[1733529008023,0.02040444,99817.0,99810.0,0.00192292]
[1733529008205,0.00800178,99817.0,99810.0,0.00192292]
[1733529009508,0.007,99817.0,99810.0,0.00192292]
[1733529012321,0.00100178,99816.0,99810.0,0.00192292]
[1733529013733,0.006,99816.0,99810.0,0.00192292]
[1733529014673,0.05,99811.0,99810.0,0.00192292]
[1733529014835,0.33290178,99811.0,99810.0,0.00192292]
[1733529015048,0.33290178,99811.0,99756.0,0.0807]
[1733529015049,0.1319,99793.0,99756.0,0.0807]
[1733529015243,0.1319,99793.0,99767.0,0.00018457]